bitfinex/quotes_BTCUSD_20250212
["timestamp","ask_amount","ask_price","bid_price","bid_amount"]
[1739386378562,0.154449,97119.0,97114.0,0.153456]
[1739386378765,0.00022366,97115.0,97114.0,0.153456]
[1739386379454,0.00722366,97115.0,97114.0,0.153456]
[1739386379889,0.00022366,97115.0,97114.0,0.30265965]
[1739386380021,0.00022366,97115.0,97114.0,0.30365965]
[1739386380222,0.00022366,97115.0,97114.0,0.38345965]
[1739386381489,0.00022366,97115.0,97114.0,0.55345965]
[1739386381714,0.00022366,97115.0,97114.0,0.55745965]
[1739386381992,0.00022366,97115.0,97114.0,0.57387552]
[1739386382194,0.00022366,97115.0,97114.0,0.57287552]
[1739386382643,0.00122366,97115.0,97114.0,0.58587552]
[1739386382936,0.00022366,97115.0,97114.0,0.56987552]
[1739386383254,0.00022366,97115.0,97114.0,0.57687552]
[1739386383456,0.00022366,97115.0,97114.0,0.56987552]
[1739386383971,0.00122366,97115.0,97114.0,0.58487552]
[1739386384654,0.00122366,97115.0,97114.0,0.59187552]
[1739386385285,0.00122366,97115.0,97114.0,0.91887552]
[1739386386009,6.6e-07,97115.0,97114.0,0.91887552]
[1739386387758,6.6e-07,97115.0,97114.0,0.91187552]
[1739386388094,0.00022366,97142.0,97115.0,0.173]
[1739386388297,0.00022366,97142.0,97141.0,0.154414]
[1739386388527,0.00022366,97142.0,97141.0,0.25691765]
[1739386389550,0.0003557,97142.0,97141.0,0.25691765]
[1739386389752,0.0003557,97142.0,97141.0,0.25991765]
[1739386389963,0.0003557,97142.0,97141.0,0.26191765]
[1739386390873,0.0003557,97142.0,97141.0,0.25891765]
[1739386391074,0.0003557,97142.0,97141.0,0.25691765]
[1739386391532,0.0003557,97142.0,97141.0,0.25891765]
[1739386391737,0.0003557,97142.0,97141.0,0.26191765]
[1739386391937,0.0003557,97142.0,97141.0,0.25991765]
[1739386392084,0.0003557,97142.0,97141.0,0.25691765]
[1739386392289,0.0003557,97142.0,97141.0,0.26091765]
[1739386392685,0.0003557,97142.0,97141.0,0.25691765]
[1739386392916,0.0003557,97142.0,97141.0,0.004]
[1739386393112,0.0003557,97142.0,97141.0,0.007]
[1739386394176,0.0003557,97142.0,97141.0,0.157414]
[1739386394390,0.0003557,97142.0,97141.0,0.158414]
[1739386394611,0.0003557,97142.0,97141.0,0.160414]
[1739386394828,0.0003557,97142.0,97141.0,0.25891765]
[1739386395026,0.0003557,97142.0,97141.0,0.38921765]
[1739386395392,0.0003557,97142.0,97141.0,0.39021765]
[1739386395758,0.0003557,97142.0,97141.0,0.38621765]
[1739386395962,0.0003557,97142.0,97141.0,0.38921765]
[1739386396183,0.0003557,97142.0,97141.0,0.40121765]
[1739386396774,0.0003557,97142.0,97141.0,0.41759524]
[1739386397179,0.0003557,97142.0,97141.0,0.41459524]
[1739386398095,0.0003557,97142.0,97141.0,0.42159524]
[1739386399427,0.0003557,97142.0,97141.0,0.44270309]
[1739386411214,0.0003557,97142.0,97141.0,0.61570309]
[1739386411843,0.0003557,97142.0,97141.0,0.59270309]
[1739386412791,0.0003557,97142.0,97141.0,0.58570309]
[1739386413009,0.0003557,97142.0,97141.0,0.57370309]
[1739386413205,0.0003557,97142.0,97141.0,0.58070309]
[1739386413378,0.0003557,97142.0,97141.0,0.59170309]
[1739386413905,0.0003557,97142.0,97141.0,0.58070309]
[1739386414135,0.0003557,97142.0,97141.0,0.59570309]
[1739386417218,0.00022345,97163.0,97162.0,0.154381]
[1739386417424,0.08195168,97182.0,97170.0,0.205824]
[1739386417606,0.08208377,97182.0,97181.0,0.154351]
[1739386417996,0.00013209,97182.0,97181.0,0.154351]
[1739386418192,0.00013209,97182.0,97181.0,0.25685465]
[1739386419889,0.00013209,97182.0,97181.0,0.26185465]
[1739386420131,0.00013209,97182.0,97181.0,0.26785465]
[1739386424210,0.00013209,97182.0,97181.0,0.165351]
[1739386425139,0.00013209,97182.0,97180.0,0.154351]
[1739386425314,0.00013209,97182.0,97181.0,0.154351]
[1739386425458,0.00035575,97182.0,97181.0,0.003]
[1739386425890,0.00035575,97182.0,97181.0,0.002]
[1739386426090,0.15470475,97182.0,97181.0,0.002]
[1739386426304,0.15470475,97182.0,97181.0,0.003]
[1739386426645,0.00035575,97182.0,97174.0,0.154361]
[1739386426822,0.154352,97180.0,97174.0,0.154361]
[1739386427052,0.00035575,97182.0,97160.0,0.14347511]
[1739386427339,0.00035575,97182.0,97181.0,0.001]
[1739386428318,0.00235575,97182.0,97181.0,0.155351]
[1739386428521,0.00235575,97182.0,97181.0,0.154351]
[1739386429278,0.00035575,97182.0,97181.0,0.154351]
[1739386429473,0.00135575,97182.0,97181.0,0.156351]
[1739386430136,0.00135575,97182.0,97181.0,0.154351]
[1739386430591,0.00135575,97182.0,97181.0,0.156351]
[1739386430762,0.154335,97192.0,97186.0,0.154342]
[1739386431091,0.154332,97193.0,97187.0,0.154341]
[1739386431678,0.26367,97196.0,97182.0,0.205799]
[1739386431890,0.154329,97195.0,97188.0,0.154339]
[1739386432246,0.002,97193.0,97187.0,0.154341]
[1739386432647,0.002,97193.0,97185.0,0.205792]
[1739386433012,0.154328,97195.0,97187.0,0.15434]
[1739386433303,0.154328,97195.0,97174.0,0.0763]
[1739386433304,0.002,97195.0,97174.0,0.0763]
[1739386433479,0.002,97195.0,97175.0,0.10250365]
[1739386433685,0.002,97195.0,97188.0,0.154339]
[1739386434402,0.154325,97197.0,97188.0,0.154339]
[1739386434612,0.15433,97194.0,97186.0,0.154342]
[1739386434811,0.154327,97196.0,97176.0,0.205812]
[1739386435015,0.154327,97196.0,97177.0,0.20581]
[1739386435312,0.154327,97196.0,97188.0,0.154339]
[1739386435512,0.20598866,97198.0,97186.0,0.20579]
[1739386435714,0.20598866,97198.0,97190.0,0.154336]
[1739386436288,0.205751,97205.0,97178.0,0.205807]
[1739386436526,0.15,97205.0,97196.0,0.154326]
[1739386436940,0.01541167,97204.0,97196.0,0.154326]
[1739386437177,0.01541167,97204.0,97184.0,0.205793]
[1739386437329,0.01541167,97204.0,97185.0,0.10250365]
[1739386437514,0.154316,97203.0,97194.0,0.154329]
[1739386438050,0.16972567,97204.0,97195.0,0.154328]
[1739386438278,0.00022366,97197.0,97195.0,0.154328]
[1739386438423,0.00022366,97197.0,97192.0,0.205778]
[1739386438870,0.00022366,97197.0,97185.0,0.10250365]
[1739386439295,0.00022366,97197.0,97189.0,0.154336]
[1739386439453,0.154327,97196.0,97189.0,0.154336]
[1739386439655,0.00022366,97197.0,97187.0,0.205787]
[1739386439835,0.154329,97195.0,97185.0,0.30829465]
[1739386440290,0.154329,97195.0,97188.0,0.154339]
[1739386440491,0.20599166,97197.0,97185.0,0.10250365]
[1739386440492,0.00022366,97197.0,97185.0,0.10250365]
[1739386440639,0.205778,97192.0,97183.0,0.154347]
[1739386440840,0.154336,97191.0,97184.0,0.154346]
[1739386441042,0.0579,97195.0,97178.0,0.205806]
[1739386441243,0.0579,97195.0,97174.0,0.0001065]
[1739386441444,0.0579,97195.0,97181.0,0.154349]
[1739386441445,0.15434,97188.0,97181.0,0.154349]
[1739386441645,0.205783,97190.0,97181.0,0.154349]
[1739386441874,0.155335,97191.0,97183.0,0.154346]
[1739386442227,0.154335,97191.0,97183.0,0.154346]
[1739386442800,0.154336,97190.0,97183.0,0.154346]
[1739386443344,0.154336,97190.0,97181.0,0.2058]
[1739386443345,0.007,97191.0,97181.0,0.15435]
[1739386443566,0.154341,97187.0,97180.0,0.154352]
[1739386443723,0.154347,97184.0,97177.0,0.360164]
[1739386443922,0.154347,97184.0,97177.0,0.154356]
[1739386444334,0.006,97191.0,97174.0,0.10261015]
[1739386444689,0.205785,97189.0,97174.0,0.30842515]
[1739386444859,0.154349,97182.0,97175.0,0.15436]
[1739386445040,0.005,97190.0,97175.0,0.15436]
[1739386445243,0.154347,97184.0,97177.0,0.155357]
[1739386445446,0.154347,97184.0,97177.0,0.155356]
[1739386445678,0.154347,97184.0,97177.0,0.154356]
[1739386445870,0.205784,97189.0,97174.0,0.0001065]
[1739386446082,0.15434,97188.0,97182.0,0.154349]
[1739386446492,0.01542158,97193.0,97180.0,0.205802]
[1739386446493,0.001,97191.0,97183.0,0.154347]
[1739386446794,0.155336,97191.0,97185.0,0.154343]
[1739386446948,0.001,97191.0,97175.0,0.205814]
[1739386447150,0.001,97191.0,97186.0,0.154342]
[1739386447354,0.001,97191.0,97188.0,0.15434]
[1739386447570,0.001,97191.0,97190.0,0.154336]
[1739386447964,0.01524736,97196.0,97192.0,0.154333]
[1739386448203,0.00022366,97197.0,97192.0,0.150333]
[1739386448760,0.00022366,97197.0,97192.0,0.145333]
[1739386448961,0.00022366,97197.0,97192.0,0.144333]
[1739386449171,0.00022366,97197.0,97184.0,0.0761]
[1739386449595,0.01022366,97197.0,97192.0,0.001]
[1739386449796,0.01022366,97197.0,97195.0,0.154328]
[1739386449997,0.00822366,97197.0,97192.0,0.001]
[1739386450523,0.00822366,97197.0,97192.0,0.155332]
[1739386450681,0.00822366,97197.0,97193.0,0.154331]
[1739386450882,0.00822366,97197.0,97192.0,0.155333]
[1739386451084,0.00022366,97197.0,97193.0,0.154331]
[1739386451539,0.00122366,97197.0,97184.0,0.17860365]
[1739386451738,0.00222366,97197.0,97196.0,0.154327]
[1739386451951,0.00122366,97197.0,97196.0,0.154327]
[1739386452118,0.00122366,97197.0,97184.0,0.17860365]
[1739386452325,0.00122366,97197.0,97193.0,0.001]
[1739386452720,0.154336,97191.0,97184.0,0.154346]
[1739386453034,0.00022366,97197.0,97183.0,0.0001065]
[1739386453263,0.154331,97194.0,97186.0,0.154341]
[1739386453416,0.00022366,97197.0,97183.0,0.0001065]
[1739386453614,0.154343,97186.0,97183.0,0.0001065]
[1739386453868,0.154346,97184.0,97183.0,0.0001065]
[1739386454933,0.154346,97184.0,97183.0,0.0051065]
[1739386455353,0.154346,97184.0,97183.0,0.0001065]
[1739386455694,0.154346,97184.0,97183.0,0.0091065]
[1739386456282,0.16960886,97184.0,97183.0,0.0091065]
[1739386456942,0.16960886,97184.0,97183.0,0.0102865]
[1739386457198,0.16960886,97184.0,97183.0,0.0042865]
[1739386457497,0.00022366,97197.0,97183.0,0.0052865]
[1739386457902,0.154332,97193.0,97186.0,0.154341]
[1739386458223,0.01546572,97197.0,97187.0,0.15434]
[1739386458499,0.01546572,97197.0,97184.0,0.082]
[1739386458703,0.17279172,97197.0,97187.0,0.205788]
[1739386459003,0.15,97196.0,97190.0,0.154336]
[1739386459345,0.154334,97192.0,97185.0,0.154343]
[1739386460191,0.15433,97195.0,97188.0,0.154339]
[1739386460396,0.16846572,97197.0,97189.0,0.154337]
[1739386460755,0.154327,97196.0,97189.0,0.154337]
[1739386461175,0.001,97192.0,97189.0,0.154337]
[1739386461740,0.154328,97195.0,97188.0,0.154339]
[1739386461870,0.154328,97195.0,97186.0,0.205788]
[1739386462076,0.154328,97195.0,97189.0,0.154337]
[1739386462296,0.154328,97195.0,97188.0,0.154339]
[1739386462599,0.002,97196.0,97186.0,0.205788]
[1739386462824,0.154331,97194.0,97187.0,0.154341]
[1739386463801,0.154332,97193.0,97184.0,0.287794]
[1739386464001,0.154335,97192.0,97185.0,0.154343]
[1739386464203,0.154335,97191.0,97184.0,0.082]
[1739386464410,0.15434,97188.0,97184.0,0.082]
[1739386465247,0.154338,97190.0,97184.0,0.082]
[1739386465681,0.154338,97190.0,97184.0,0.237345]
[1739386465896,0.154336,97191.0,97184.0,0.237346]
[1739386466300,0.001,97192.0,97184.0,0.083]
[1739386466508,0.15434,97188.0,97184.0,0.083]
[1739386466679,0.15434,97188.0,97184.0,0.084]
[1739386466888,0.205771,97195.0,97184.0,0.084]
[1739386467093,0.154344,97185.0,97184.0,0.002]
[1739386467388,0.154346,97184.0,97183.0,0.0012865]
[1739386468790,0.154346,97184.0,97183.0,0.0032865]
[1739386469842,0.154346,97184.0,97183.0,0.0072865]
[1739386470605,0.154346,97184.0,97183.0,0.0032865]
[1739386470742,0.154346,97184.0,97183.0,0.0052865]
[1739386470952,0.154346,97184.0,97183.0,0.0032865]
[1739386471531,0.154346,97184.0,97183.0,0.0052865]
[1739386473903,0.16934102,97184.0,97183.0,0.0052865]
[1739386475095,0.16934102,97184.0,97183.0,0.0032865]
[1739386475587,0.16934102,97184.0,97183.0,0.0012865]
[1739386475980,0.17134102,97184.0,97183.0,0.0012865]
[1739386477793,0.156346,97184.0,97183.0,0.0012865]
[1739386479806,0.002,97184.0,97168.0,0.205827]
[1739386480004,0.15436,97175.0,97169.0,0.15437]
[1739386480374,0.002,97184.0,97168.0,0.10263574]
[1739386480375,0.154363,97174.0,97168.0,0.10263574]
[1739386480786,0.205812,97176.0,97168.0,0.10263574]
[1739386480787,0.154364,97173.0,97168.0,0.10263574]
[1739386481305,0.154365,97172.0,97168.0,0.10263574]
[1739386481715,0.154365,97172.0,97168.0,0.10563574]
[1739386481915,0.002,97184.0,97168.0,0.10263574]
[1739386482119,0.154365,97172.0,97168.0,0.10263574]
[1739386482333,0.154364,97173.0,97168.0,0.10263574]
[1739386482523,0.002,97184.0,97169.0,0.15437]
[1739386482524,0.205797,97183.0,97169.0,0.15437]
[1739386482732,0.15436,97176.0,97169.0,0.15437]
[1739386482937,0.154361,97175.0,97169.0,0.15437]
[1739386483088,0.154363,97174.0,97168.0,0.10263574]
[1739386483291,0.20581,97177.0,97168.0,0.10863574]
[1739386483493,0.154364,97173.0,97168.0,0.10863574]
[1739386483836,0.205814,97175.0,97168.0,0.10863574]
[1739386483837,0.20581,97177.0,97168.0,0.10263574]
[1739386484035,0.02103562,97201.0,97168.0,0.10263574]
[1739386484245,0.154366,97172.0,97168.0,0.10563574]
[1739386484536,0.154366,97172.0,97168.0,0.10263574]
[1739386484735,0.154366,97172.0,97168.0,0.10463574]
[1739386485093,0.154366,97172.0,97169.0,0.003]
[1739386485504,0.205798,97183.0,97168.0,0.10463574]
[1739386485871,0.154362,97174.0,97168.0,0.26200674]
[1739386486205,0.205798,97183.0,97168.0,0.10263574]
[1739386486409,0.205799,97182.0,97168.0,0.10274224]
[1739386486798,0.154368,97170.0,97168.0,0.10274224]
[1739386487447,0.205801,97181.0,97168.0,0.10274224]
[1739386487668,0.154366,97172.0,97169.0,0.002]
[1739386487995,0.154366,97172.0,97168.0,0.10274224]
[1739386488202,0.154366,97172.0,97168.0,0.10574224]
[1739386488718,0.154366,97172.0,97168.0,0.10274224]
[1739386488913,0.154366,97172.0,97169.0,0.002]
[1739386489317,0.154368,97171.0,97168.0,0.10274224]
[1739386489530,0.205801,97181.0,97168.0,0.10474224]
[1739386489726,0.154369,97170.0,97168.0,0.10774224]
[1739386490022,0.15437,97169.0,97168.0,0.10774224]
[1739386490225,0.15437,97169.0,97168.0,0.00523859]
[1739386490843,0.15437,97169.0,97168.0,0.00323859]
[1739386491050,0.15437,97169.0,97168.0,0.00023859]
[1739386491459,0.15437,97169.0,97168.0,0.00423859]
[1739386491655,0.2315529,97169.0,97168.0,0.00423859]
[1739386491862,0.2315529,97169.0,97168.0,0.00023859]
[1739386492064,0.15437,97169.0,97168.0,0.00323859]
[1739386492385,0.15437,97169.0,97168.0,0.00823859]
[1739386492730,0.16958465,97169.0,97168.0,0.00323859]
[1739386493873,0.16958465,97169.0,97168.0,0.00023859]
[1739386494056,0.16958465,97169.0,97168.0,0.00123859]
[1739386494488,0.25140436,97169.0,97168.0,0.00123859]
[1739386494699,0.09703436,97169.0,97140.0,0.15215459]
[1739386494906,0.154396,97153.0,97140.0,0.25465824]
[1739386495115,0.14264945,97160.0,97137.0,0.08195168]
[1739386495116,0.15441,97144.0,97137.0,0.08195168]
[1739386495325,0.0475,97157.0,97132.0,0.08215744]
[1739386495550,0.02058101,97169.0,97138.0,0.10250365]
[1739386495551,0.15438,97163.0,97138.0,0.10250365]
[1739386495758,0.15438,97163.0,97149.0,0.154401]
[1739386495967,0.0475,97168.0,97138.0,0.10250365]
[1739386496172,0.0475,97168.0,97139.0,0.20589]
[1739386496376,0.154382,97162.0,97140.0,0.10250365]
[1739386497130,0.15438,97163.0,97151.0,0.154398]
[1739386497331,0.154381,97162.0,97151.0,0.154398]
[1739386497527,0.156381,97162.0,97151.0,0.154398]
[1739386497833,0.002,97162.0,97151.0,0.154398]
[1739386498039,0.002,97162.0,97151.0,0.154397]
[1739386498238,0.002,97162.0,97150.0,0.205867]
[1739386498481,0.304373,97167.0,97150.0,0.205865]
[1739386498629,0.304373,97167.0,97151.0,0.154398]
[1739386498849,0.006,97162.0,97150.0,0.205865]
[1739386499247,0.006,97162.0,97151.0,0.154398]
[1739386499450,0.002,97162.0,97151.0,0.154398]
[1739386499654,0.002,97162.0,97150.0,0.205865]
[1739386499858,0.002,97162.0,97152.0,0.205861]
[1739386500121,0.002,97162.0,97148.0,0.0755]
[1739386500335,0.002,97162.0,97153.0,0.154395]
[1739386500715,0.002,97162.0,97149.0,0.205869]
[1739386500911,0.004,97167.0,97151.0,0.001]
[1739386501463,0.02058101,97169.0,97148.0,0.0755]
[1739386501638,0.004,97162.0,97157.0,0.154388]
[1739386501969,0.004,97162.0,97156.0,0.15439]
[1739386502331,0.004,97162.0,97157.0,0.154389]
[1739386502716,0.02058101,97169.0,97155.0,0.205855]
[1739386502911,0.02058101,97169.0,97156.0,0.154389]
[1739386503125,0.02058101,97169.0,97157.0,0.154388]
[1739386503321,0.17495101,97169.0,97149.0,0.205868]
[1739386503686,0.02058101,97169.0,97161.0,0.154382]
[1739386504121,0.02058101,97169.0,97157.0,0.001]
[1739386504408,0.00536636,97169.0,97161.0,0.154382]
[1739386504614,0.00636636,97169.0,97148.0,0.0755]
[1739386504762,0.00536636,97169.0,97148.0,0.10250365]
[1739386504945,0.004,97167.0,97149.0,0.205869]
[1739386505146,0.004,97167.0,97162.0,0.154379]
[1739386505366,0.004,97167.0,97163.0,0.154379]
[1739386505587,0.00636636,97169.0,97148.0,0.10250365]
[1739386505588,0.00636636,97169.0,97166.0,0.154374]
[1739386505757,0.001,97169.0,97160.0,0.205844]
[1739386506107,0.005,97169.0,97148.0,0.10250365]
[1739386506335,0.005,97169.0,97164.0,0.154377]
[1739386506779,0.005,97169.0,97150.0,0.14264945]
[1739386506956,0.004,97169.0,97168.0,0.154371]
[1739386507320,0.01494417,97177.0,97151.0,0.10250365]
[1739386507516,0.00013202,97177.0,97151.0,0.10250365]
[1739386507783,0.154372,97168.0,97157.0,0.154389]
[1739386507917,0.004,97169.0,97151.0,0.10250365]
[1739386508125,0.004,97169.0,97161.0,0.154382]
[1739386508331,0.001,97169.0,97161.0,0.154382]
[1739386508531,0.01958837,97177.0,97151.0,0.10350365]
[1739386508732,0.00413202,97177.0,97151.0,0.10350365]
[1739386509078,0.00013202,97177.0,97151.0,0.10250365]
[1739386509213,0.004,97169.0,97151.0,0.10250365]
[1739386509575,0.001,97168.0,97151.0,0.10250365]
[1739386509750,0.001,97168.0,97152.0,0.205862]
[1739386509953,0.001,97168.0,97157.0,0.205851]
[1739386510157,0.001,97168.0,97152.0,0.10250365]
[1739386510359,0.001,97168.0,97150.0,0.0802]
[1739386510360,0.001,97168.0,97153.0,0.10250365]
[1739386510566,0.154373,97167.0,97157.0,0.154388]
[1739386510766,0.154375,97166.0,97154.0,0.205858]
[1739386510928,0.154375,97166.0,97156.0,0.15439]
[1739386511130,0.01536144,97170.0,97154.0,0.10250365]
[1739386511327,0.205814,97175.0,97154.0,0.10250365]
[1739386511529,0.00213202,97177.0,97151.0,0.0001065]
[1739386511772,0.003,97167.0,97152.0,0.10250365]
[1739386511949,0.154384,97161.0,97152.0,0.10250365]
[1739386512160,0.154383,97161.0,97152.0,0.10250365]
[1739386512674,0.205841,97163.0,97154.0,0.001]
[1739386512883,0.205833,97166.0,97154.0,0.001]
[1739386513112,0.154392,97155.0,97154.0,0.001]
[1739386513840,0.154397,97152.0,97151.0,0.0001065]
[1739386514933,0.205863,97152.0,97130.0,0.14264945]
[1739386515159,0.1544,97150.0,97142.0,0.154412]
[1739386515500,0.11794994,97164.0,97132.0,0.10250365]
[1739386515707,0.003,97152.0,97133.0,0.205903]
[1739386515917,0.003,97152.0,97151.0,0.154398]
[1739386516742,0.003,97152.0,97151.0,0.25690165]
[1739386516904,0.154367,97171.0,97163.0,0.154379]
[1739386517103,0.154367,97171.0,97163.0,0.152379]
[1739386517342,0.154368,97170.0,97163.0,0.152379]
[1739386517542,0.20594202,97177.0,97151.0,0.10250365]
[1739386517754,0.00013202,97177.0,97168.0,0.205827]
[1739386517900,0.00013202,97177.0,97171.0,0.150365]
[1739386518104,0.00013202,97177.0,97170.0,0.205823]
[1739386518105,0.00013202,97177.0,97172.0,0.154365]
[1739386518356,0.001,97171.0,97170.0,0.36019]
[1739386518525,0.00013202,97177.0,97170.0,0.154367]
[1739386518726,0.004,97177.0,97169.0,0.154369]
[1739386519047,0.007,97177.0,97172.0,0.154363]
[1739386519223,0.007,97177.0,97171.0,0.154366]
[1739386519409,0.004,97177.0,97171.0,0.154366]
[1739386519607,0.004,97177.0,97158.0,0.154386]
[1739386519820,0.154372,97168.0,97159.0,0.154385]
[1739386520003,0.154373,97168.0,97159.0,0.154384]
[1739386520197,0.154373,97168.0,97152.0,0.10250365]
[1739386520198,0.154373,97168.0,97160.0,0.154383]
[1739386520404,0.154372,97168.0,97154.0,0.205858]
[1739386520785,0.154376,97166.0,97155.0,0.10250365]
[1739386520953,0.154372,97168.0,97155.0,0.10250365]
[1739386521128,0.155372,97168.0,97156.0,0.205854]
[1739386521341,0.155372,97168.0,97160.0,0.154383]
[1739386521342,0.154373,97167.0,97160.0,0.154383]
[1739386521780,0.154376,97166.0,97160.0,0.154383]
[1739386522008,0.0818,97176.0,97160.0,0.154383]
[1739386522162,0.001,97168.0,97160.0,0.154383]
[1739386522362,0.0818,97176.0,97156.0,0.10250365]
[1739386522363,0.205822,97171.0,97156.0,0.10250365]
[1739386522704,0.154384,97161.0,97156.0,0.10250365]
[1739386524236,0.154384,97161.0,97156.0,0.10450365]
[1739386524790,0.154383,97161.0,97156.0,0.10750365]
[1739386525293,0.20584,97163.0,97156.0,0.10750365]
[1739386525608,0.154384,97161.0,97156.0,0.26189365]
[1739386525820,0.154379,97164.0,97156.0,0.10750365]
[1739386526225,0.205828,97169.0,97158.0,0.154386]
[1739386526426,0.205829,97168.0,97158.0,0.154386]
[1739386526602,0.154378,97165.0,97160.0,0.154384]
[1739386526804,0.287613,97176.0,97159.0,0.154386]
[1739386527007,0.30283896,97176.0,97159.0,0.154386]
[1739386527213,0.205814,97175.0,97159.0,0.154384]
[1739386527459,0.154376,97165.0,97159.0,0.154384]
[1739386527834,0.154376,97165.0,97157.0,0.205852]
[1739386528179,0.205832,97167.0,97159.0,0.154384]
[1739386528414,0.154378,97164.0,97159.0,0.154384]
[1739386529283,0.208814,97175.0,97157.0,0.205852]
[1739386529462,0.154379,97164.0,97158.0,0.154387]
[1739386530085,0.15438,97163.0,97158.0,0.154387]
[1739386530875,0.14242596,97176.0,97158.0,0.001]
[1739386531081,0.14242596,97176.0,97152.0,0.0001065]
[1739386531328,0.154392,97156.0,97152.0,0.0001065]
[1739386531479,0.14242596,97176.0,97152.0,0.0001065]
[1739386531700,0.154391,97156.0,97152.0,0.0001065]
[1739386533404,0.154395,97153.0,97152.0,0.0031065]
[1739386534290,0.154395,97153.0,97152.0,0.0091065]
[1739386534720,0.205858,97155.0,97135.0,0.205897]
[1739386534917,0.15441,97144.0,97136.0,0.10250365]
[1739386535111,0.15441,97144.0,97140.0,0.154415]
[1739386535450,0.154407,97146.0,97141.0,0.154414]
[1739386535703,0.205844,97161.0,97146.0,0.154405]
[1739386535909,0.154396,97153.0,97147.0,0.154404]
[1739386536206,0.154397,97152.0,97147.0,0.15453602]
[1739386536406,0.566076,97160.0,97147.0,0.00013202]
[1739386536619,0.154398,97151.0,97147.0,0.00013202]
[1739386537113,0.154403,97148.0,97147.0,0.00113202]
[1739386537321,0.154403,97148.0,97147.0,0.00613202]
[1739386537529,0.154403,97148.0,97147.0,0.00513202]
[1739386537723,0.154403,97148.0,97147.0,0.00213202]
[1739386537940,0.154403,97148.0,97147.0,0.00013202]
[1739386538103,0.154403,97148.0,97147.0,0.00613202]
[1739386538300,0.154403,97148.0,97147.0,0.00913202]
[1739386539310,0.154403,97148.0,97147.0,0.00313202]
[1739386539524,0.154403,97148.0,97147.0,0.01013202]
[1739386539857,0.154403,97148.0,97147.0,0.00713202]
[1739386540056,0.154403,97148.0,97147.0,0.00013202]
[1739386540405,0.154403,97148.0,97147.0,0.00113202]
[1739386540607,0.154403,97148.0,97147.0,0.00213202]
[1739386543558,0.205839,97164.0,97147.0,0.08113202]
[1739386543718,0.20607466,97158.0,97147.0,0.23553602]
[1739386543919,0.154396,97153.0,97147.0,0.08113202]
[1739386544119,0.01518469,97158.0,97147.0,0.07053202]
[1739386544371,0.205855,97156.0,97147.0,0.07053202]
[1739386544574,0.00022366,97158.0,97147.0,0.07053202]
[1739386544786,0.154397,97153.0,97147.0,0.07053202]
[1739386545243,0.154399,97151.0,97147.0,0.07053202]
[1739386545899,0.00822366,97158.0,97147.0,0.07053202]
[1739386546022,0.205852,97157.0,97147.0,0.07053202]
[1739386546228,0.205868,97150.0,97142.0,0.154411]
[1739386546560,0.205868,97150.0,97144.0,0.154409]
[1739386546561,0.154402,97149.0,97144.0,0.154409]
[1739386546765,0.205868,97150.0,97142.0,0.205884]
[1739386546964,0.154403,97148.0,97147.0,0.001]
[1739386547162,0.205852,97157.0,97142.0,0.0751]
[1739386547342,0.154403,97148.0,97143.0,0.15441]
[1739386548074,0.154403,97148.0,97147.0,0.001]
[1739386549093,0.154403,97148.0,97147.0,0.004]
[1739386549309,0.154403,97148.0,97147.0,0.003]
[1739386549451,0.154406,97147.0,97142.0,0.0751]
[1739386549653,0.205852,97157.0,97143.0,0.001]
[1739386549975,0.205852,97157.0,97147.0,0.001]
[1739386550140,0.205852,97157.0,97143.0,0.0001065]
[1739386550342,0.205862,97153.0,97143.0,0.0001065]
[1739386550550,0.154403,97148.0,97143.0,0.1545165]
[1739386551151,0.205867,97150.0,97143.0,0.1545165]
[1739386551429,0.154405,97147.0,97143.0,0.0001065]
[1739386551590,0.154406,97147.0,97143.0,0.0001065]
[1739386552114,0.154402,97149.0,97144.0,0.154409]
[1739386552521,0.154403,97148.0,97143.0,0.1545165]
[1739386552756,0.22086266,97157.0,97143.0,0.0001065]
[1739386552916,0.154405,97147.0,97143.0,0.0011065]
[1739386553096,0.154405,97147.0,97143.0,0.0021065]
[1739386553298,0.154405,97147.0,97143.0,0.0001065]
[1739386553498,0.22086266,97157.0,97143.0,0.0001065]
[1739386553703,0.22086266,97157.0,97143.0,0.0011065]
[1739386553926,0.154407,97146.0,97143.0,0.0011065]
[1739386554122,0.154407,97146.0,97143.0,0.0021065]
[1739386554340,0.22086266,97157.0,97143.0,0.0021065]
[1739386554562,0.154404,97148.0,97143.0,0.0021065]
[1739386554961,0.154405,97147.0,97143.0,0.0011065]
[1739386555254,0.154407,97146.0,97143.0,0.0011065]
[1739386556204,0.154407,97146.0,97143.0,0.0001065]
[1739386556401,0.154407,97146.0,97143.0,0.0021065]
[1739386556847,0.154407,97146.0,97143.0,0.0031065]
[1739386557050,0.154407,97146.0,97143.0,0.0021065]
[1739386557291,0.154407,97146.0,97143.0,0.0031065]
[1739386557490,0.22086266,97157.0,97143.0,0.0031065]
[1739386557669,0.22086366,97157.0,97144.0,0.205879]
[1739386557888,0.205853,97157.0,97144.0,0.205879]
[1739386558071,0.205843,97162.0,97143.0,0.0031065]
[1739386558254,0.154401,97150.0,97144.0,0.154408]
[1739386558652,0.205864,97152.0,97144.0,0.205879]
[1739386558653,0.154398,97152.0,97144.0,0.205879]
[1739386558898,0.1544,97151.0,97144.0,0.205879]
[1739386559263,0.1544,97151.0,97146.0,0.154406]
[1739386559615,0.001,97150.0,97146.0,0.154406]
[1739386559800,0.001,97150.0,97143.0,0.0001065]
[1739386560007,0.154406,97147.0,97143.0,0.0001065]
[1739386560581,0.154407,97146.0,97143.0,0.0001065]
[1739386560896,0.205872,97148.0,97143.0,0.0001065]
[1739386561515,0.154405,97147.0,97146.0,0.001]
[1739386562116,0.01876473,97158.0,97143.0,0.0001065]
[1739386562456,0.154409,97144.0,97143.0,0.0041065]
[1739386562770,0.154409,97144.0,97143.0,0.0001065]
[1739386564925,0.232609,97144.0,97143.0,0.0061065]
[1739386565125,0.25184677,97144.0,97143.0,0.0081065]